fUST/lending_fUST_20251006
["ID","MTS","AMOUNT","RATE_DAILY","PERIOD"]
[389516413,1759692180350,-500.0,0.00016438,2]
[389516414,1759692180372,-500.0,0.00016438,2]
[389516415,1759692180392,-605.28,0.00016438,2]
[389516416,1759692180412,-500.0,0.00016438,2]
[389516417,1759692180432,-500.0,0.00016438,2]
[389516418,1759692180452,-500.0,0.00016438,2]
[389516419,1759692180474,-500.0,0.00016438,2]
[389516420,1759692180496,-698.7,0.00016438,2]
[389516421,1759692180520,-860.56,0.00016438,2]
[389516422,1759692180541,-500.0,0.00016438,2]
[389516423,1759692180562,-632.88,0.00016438,2]
[389516424,1759692180583,-500.0,0.00016438,2]
[389516425,1759692180603,-662.45,0.00016438,2]
[389516426,1759692180624,-500.0,0.00016438,2]
[389516427,1759692180645,-500.0,0.00016438,2]
[389516428,1759692180667,-500.0,0.00016438,2]
[389516429,1759692180688,-500.0,0.00016438,2]
[389516430,1759692180710,-938.07387253,0.00016438,2]
[389516431,1759692180748,666.0,0.00015437,2]
[389516456,1759692422777,3261.73,0.00028767,120]
[389516460,1759692491400,307.599446,0.00015438,2]
[389516472,1759692572790,484.67086809,0.00015738,2]
[389516518,1759692632163,-300.0,0.00016428,2]
[389516520,1759692632172,-266.3,0.00016428,3]
[389516522,1759692632181,-39.27180953,0.00016428,3]
[389516724,1759692635770,-759.66819047,0.00016428,3]
[389516725,1759692635779,-629.0,0.00016436,2]
[389516726,1759692635788,-300.0,0.00016436,2]
[389516727,1759692635799,-223.33029232,0.00016437,2]
[389516728,1759692635807,-300.0,0.00016437,2]
[389516729,1759692635816,-1200.0,0.00016437,2]
[389516730,1759692635825,-346.67109539,0.00016438,2]
[389516732,1759692635835,-500.0,0.00016438,2]
[389516734,1759692635844,-500.0,0.00016438,2]
[389516736,1759692635852,-500.0,0.00016438,2]
[389516738,1759692635861,-481.08363986,0.00016438,2]
[389516740,1759692635870,-500.0,0.00016438,2]
[389516742,1759692635880,-500.0,0.00016438,2]
[389516743,1759692635889,-500.0,0.00016438,2]
[389516744,1759692635898,-500.0,0.00016438,2]
[389516745,1759692635907,-500.0,0.00016438,2]
[389516746,1759692635916,-500.0,0.00016438,2]
[389516747,1759692635926,-500.0,0.00016438,2]
[389516748,1759692635935,-500.0,0.00016438,2]
[389516749,1759692635944,-500.0,0.00016438,2]
[389516750,1759692635953,-500.0,0.00016438,2]
[389516751,1759692635963,-500.0,0.00016438,2]
[389516752,1759692635972,-500.0,0.00016438,2]
[389516753,1759692635981,-1101.78,0.00016438,2]
[389516754,1759692635990,-500.0,0.00016438,2]
[389516755,1759692635999,-500.0,0.00016438,2]
[389516756,1759692636009,-500.0,0.00016438,2]
[389516757,1759692636018,-500.0,0.00016438,2]
[389516758,1759692636028,-500.0,0.00016438,2]
[389516759,1759692636037,-500.0,0.00016438,2]
[389516760,1759692636046,-500.0,0.00016438,2]
[389516761,1759692636055,-500.0,0.00016438,2]
[389516762,1759692636065,-500.0,0.00016438,2]
[389516763,1759692636074,-734.59,0.00016438,2]
[389516764,1759692636084,-463.3444978,0.00016438,2]
[389516765,1759692636093,-613.4,0.00016438,2]
[389516766,1759692636102,-541.71,0.00016438,2]
[389516767,1759692636112,-500.0,0.00016438,2]
[389516768,1759692636121,-500.0,0.00016438,2]
[389516769,1759692636130,-1007.86,0.00016438,2]
[389516770,1759692636139,-500.0,0.00016438,2]
[389516771,1759692636149,-500.0,0.00016438,2]
[389516772,1759692636158,-500.0,0.00016438,2]
[389516773,1759692636168,-500.0,0.00016438,2]
[389516774,1759692636177,-500.0,0.00016438,2]
[389516775,1759692636186,-500.0,0.00016438,2]
[389516776,1759692636195,-500.0,0.00016438,2]
[389516777,1759692636204,-500.0,0.00016438,2]
[389516778,1759692636213,-500.0,0.00016438,2]
[389516779,1759692636222,-545.83,0.00016438,2]
[389516780,1759692636240,-500.0,0.00016438,2]
[389516781,1759692636249,-500.0,0.00016438,2]
[389516782,1759692636259,-500.0,0.00016438,2]
[389516783,1759692636268,-500.0,0.00016438,2]
[389516784,1759692636279,-500.0,0.00016438,2]
[389516785,1759692636288,-500.0,0.00016438,2]
[389516786,1759692636297,-500.0,0.00016438,2]
[389516787,1759692636307,-500.0,0.00016438,2]
[389516788,1759692636316,-623.0,0.00016438,2]
[389516789,1759692636325,-941.07,0.00016438,2]
[389516790,1759692636334,-500.0,0.00016438,2]
[389516791,1759692636343,-1704.19,0.00016438,2]
[389516792,1759692636352,-500.0,0.00016438,2]
[389516793,1759692636362,-1027.87,0.00016438,2]
[389516794,1759692636371,-500.0,0.00016438,2]
[389516795,1759692636380,-500.0,0.00016438,2]
[389516796,1759692636389,-500.0,0.00016438,2]
[389516797,1759692636398,-500.0,0.00016438,2]
[389516798,1759692636407,-526.84,0.00016438,2]
[389516799,1759692636416,-500.0,0.00016438,2]
[389516800,1759692636425,-500.0,0.00016438,2]
[389516801,1759692636435,-543.22,0.00016438,2]
[389516802,1759692636445,-500.0,0.00016438,2]
[389516803,1759692636456,-500.0,0.00016438,2]
[389516804,1759692636466,-867.19,0.00016438,2]
[389516805,1759692636475,-679.18,0.00016438,2]
[389516806,1759692636484,-610.06,0.00016438,2]
[389516807,1759692636493,-700.71,0.00016438,2]
[389516808,1759692636502,-500.0,0.00016438,2]
[389516809,1759692636511,-500.0,0.00016438,2]
[389516810,1759692636520,-500.0,0.00016438,2]
[389516811,1759692636530,-673.07,0.00016438,2]
[389516812,1759692636539,-500.0,0.00016438,2]
[389516813,1759692636549,-500.0,0.00016438,2]
[389516814,1759692636558,-500.0,0.00016438,2]
[389516815,1759692636567,-500.0,0.00016438,2]
[389516816,1759692636577,-809.79,0.00016438,2]
[389516817,1759692636586,-500.0,0.00016438,2]
[389516818,1759692636600,-1748.31,0.00016438,2]
[389516819,1759692636610,-500.0,0.00016438,2]
[389516820,1759692636619,-500.0,0.00016438,2]
[389516821,1759692636628,-500.0,0.00016438,2]
[389516822,1759692636637,-1036.92,0.00016438,2]
[389516823,1759692636648,-500.0,0.00016438,2]
[389516824,1759692636661,-500.0,0.00016438,2]
[389516825,1759692636672,-202.003537,0.00016438,2]
[389516826,1759692636681,-500.0,0.00016438,2]
[389516827,1759692636690,-500.0,0.00016438,2]
[389516828,1759692636699,-500.0,0.00016438,2]
[389516829,1759692636708,-500.0,0.00016438,2]
[389516830,1759692636717,-500.0,0.00016438,2]
[389516831,1759692636726,-500.0,0.00016438,2]
[389516832,1759692636735,-500.0,0.00016438,2]
[389516833,1759692636744,-500.0,0.00016438,2]
[389516834,1759692636753,-500.0,0.00016438,2]
[389516835,1759692636762,-500.0,0.00016438,2]
[389516836,1759692636771,-500.0,0.00016438,2]
[389516837,1759692636780,-500.0,0.00016438,2]
[389516838,1759692636789,-24305.0401921,0.00016438,2]
[389516839,1759692636798,-589.55,0.00016438,2]
[389516840,1759692637011,-500.0,0.00016438,2]
[389516841,1759692637021,-1718.63,0.00016438,2]
[389516842,1759692637031,-500.0,0.00016438,2]
[389516843,1759692637039,-500.0,0.00016438,2]
[389516844,1759692637049,-500.0,0.00016438,2]
[389516845,1759692637058,-500.0,0.00016438,2]
[389516846,1759692637068,-500.0,0.00016438,2]
[389516847,1759692637077,-500.0,0.00016438,2]
[389516848,1759692637087,-500.0,0.00016438,2]
[389516849,1759692637096,-500.0,0.00016438,2]
[389516850,1759692637104,-500.0,0.00016438,2]
[389516851,1759692637113,-707.46,0.00016438,2]
[389516852,1759692637123,-500.78128064,0.00016438,2]
[389516853,1759692637132,-500.0,0.00016438,2]
[389516854,1759692637141,-650.41,0.00016438,2]
[389516855,1759692637150,-500.0,0.00016438,2]
[389516856,1759692637159,-1044.75,0.00016438,2]
[389516857,1759692637169,-500.0,0.00016438,2]
[389516858,1759692637177,-500.0,0.00016438,2]
[389516859,1759692637187,-539.43,0.00016438,2]
[389516860,1759692637196,-727.65,0.00016438,2]
[389516861,1759692637205,-845.99,0.00016438,2]
[389516862,1759692637214,-500.0,0.00016438,2]
[389516863,1759692637223,-409.05398434,0.00016438,2]
[389516864,1759692637236,-500.0,0.00016438,2]
[389516865,1759692637246,-500.0,0.00016438,2]
[389516866,1759692637255,-500.0,0.00016438,2]
[389516867,1759692637264,-500.0,0.00016438,2]
[389516868,1759692637273,-500.0,0.00016438,2]
[389516869,1759692637283,-500.0,0.00016438,2]
[389516870,1759692637292,-500.0,0.00016438,2]
[389516871,1759692637300,-500.0,0.00016438,2]
[389516872,1759692637309,-500.0,0.00016438,2]
[389516873,1759692637318,-818.26,0.00016438,2]
[389516874,1759692637327,-500.0,0.00016438,2]
[389516875,1759692637337,-500.0,0.00016438,2]
[389516876,1759692637350,-500.0,0.00016438,2]
[389516877,1759692637359,-5075.45,0.00016438,2]
[389516878,1759692637369,-202.20094709,0.00016438,2]
[389516879,1759692637378,-500.0,0.00016438,2]
[389516880,1759692637387,-500.0,0.00016438,2]
[389516881,1759692637396,-1971.29,0.00016438,2]
[389516882,1759692637406,-500.0,0.00016438,2]
[389516884,1759692637415,-500.0,0.00016438,2]
[389516886,1759692637424,-500.0,0.00016438,2]
[389516887,1759692637433,-1923.98,0.00016438,2]
[389516888,1759692637442,-628.15,0.00016438,2]
[389516889,1759692637453,-500.0,0.00016438,2]
[389516891,1759692637464,-500.0,0.00016438,2]
[389516892,1759692637473,-500.0,0.00016438,2]
[389516894,1759692637485,-820.02,0.00016438,2]
[389516895,1759692637494,-2676.55,0.00016438,2]
[389516896,1759692637505,-500.0,0.00016438,2]
[389516897,1759692637514,-500.0,0.00016438,2]
[389516898,1759692637523,-500.0,0.00016438,2]
[389516899,1759692637536,-1089.03,0.00016438,2]
[389516900,1759692637546,-500.0,0.00016438,2]
[389516901,1759692637555,-500.0,0.00016438,2]
[389516902,1759692637565,-500.0,0.00016438,2]
[389516903,1759692637574,-1104.93,0.00016438,2]
[389516904,1759692637584,-500.0,0.00016438,2]
[389516905,1759692637594,-500.0,0.00016438,2]
[389516906,1759692637603,-500.0,0.00016438,2]
[389516907,1759692637612,-544.49,0.00016438,2]
[389516908,1759692637621,-500.0,0.00016438,2]
[389516909,1759692637630,-500.0,0.00016438,2]
[389516910,1759692637640,-2626.85,0.00016438,2]
[389516911,1759692637649,-651.08,0.00016438,2]
[389516912,1759692637658,-1933.04,0.00016438,2]
[389516913,1759692637667,-500.0,0.00016438,2]
[389516914,1759692637676,-640.21,0.00016438,2]
[389516915,1759692637685,-500.0,0.00016438,2]
[389516916,1759692637694,-500.0,0.00016438,2]
[389516917,1759692637703,-4219.41,0.00016438,2]
[389516918,1759692637712,-3139.2,0.00016438,2]
[389516919,1759692637721,-3871.69,0.00016438,2]
[389516920,1759692637731,-1243.49,0.00016438,2]
[389516921,1759692637740,-500.0,0.00016438,2]
[389516922,1759692637749,-485.09980661,0.00016438,2]
[389516923,1759692637758,-500.0,0.00016438,2]
[389516924,1759692637768,-500.0,0.00016438,2]
[389516926,1759692637776,-857.23,0.00016438,2]
[389516927,1759692637785,-588.92,0.00016438,2]
[389516929,1759692637794,-597.79,0.00016438,2]
[389516931,1759692637802,-500.0,0.00016438,2]
[389516933,1759692637811,-500.0,0.00016438,2]
[389516935,1759692637820,-500.0,0.00016438,2]
[389516937,1759692637829,-500.0,0.00016438,2]
[389516939,1759692637839,-500.0,0.00016438,2]
[389516941,1759692637848,-3649.83,0.00016438,2]
[389516943,1759692637857,-924.11,0.00016438,2]
[389516945,1759692637866,-601.34,0.00016438,2]
[389516947,1759692637875,-670.11,0.00016438,2]
[389516949,1759692637884,-500.0,0.00016438,2]
[389516951,1759692637893,-3096.74,0.00016438,2]
[389516953,1759692637902,-3015.4171087,0.00016438,2]
[389516955,1759692637911,-1663.12,0.00016438,2]
[389516957,1759692637920,-1711.03,0.00016438,2]
[389516959,1759692637928,-1159.56,0.00016438,2]
[389516961,1759692637937,-1107.41,0.00016438,2]
[389516963,1759692637947,-500.0,0.00016438,2]
[389516965,1759692637956,-669.78,0.00016438,2]
[389516967,1759692637965,-500.0,0.00016438,2]
[389516969,1759692637974,-500.0,0.00016438,2]
[389516971,1759692637983,-1321.05,0.00016438,2]
[389516973,1759692637992,-1386.38,0.00016438,2]
[389516975,1759692638002,-500.0,0.00016438,2]
[389516978,1759692638011,-622.72,0.00016438,2]
[389516979,1759692638021,-500.0,0.00016438,2]
[389516981,1759692638031,-2338.81,0.00016438,2]
[389516983,1759692638040,-2336.38,0.00016438,2]
[389516985,1759692638050,-807.08,0.00016438,2]
[389516987,1759692638059,-758.74,0.00016438,2]
[389516990,1759692638069,-500.0,0.00016438,2]
[389516992,1759692638078,-500.0,0.00016438,2]
[389516993,1759692638088,-589.48245182,0.00016438,2]
[389516996,1759692638098,-500.0,0.00016438,2]
[389516998,1759692638107,-500.0,0.00016438,2]
[389517000,1759692638116,-814.23,0.00016438,2]
[389517002,1759692638126,-670.58,0.00016438,2]
[389517005,1759692638135,-414.1713084,0.00016438,2]
[389517043,1759692638500,-167.9586916,0.00016438,2]
[389517045,1759692638509,-569.74,0.00016438,2]
[389517047,1759692638519,-500.0,0.00016438,2]
[389517049,1759692638528,-500.0,0.00016438,2]
[389517051,1759692638537,-500.0,0.00016438,2]
[389517053,1759692638546,-6442.78,0.00016438,2]
[389517055,1759692638556,-1155.21,0.00016438,2]
[389517057,1759692638565,-500.0,0.00016438,2]
[389517059,1759692638574,-500.0,0.00016438,2]
[389517061,1759692638583,-1398.22,0.00016438,2]
[389517063,1759692638592,-500.0,0.00016438,2]
[389517065,1759692638601,-2931.06,0.00016438,2]
[389517068,1759692638610,-500.0,0.00016438,2]
[389517069,1759692638619,-704.18,0.00016438,2]
[389517072,1759692638630,-500.0,0.00016438,2]
[389517074,1759692638638,-537.55,0.00016438,2]
[389517076,1759692638647,-500.0,0.00016438,2]
[389517078,1759692638658,-500.0,0.00016438,2]
[389517079,1759692638666,-500.0,0.00016438,2]
[389517081,1759692638675,-1616.83,0.00016438,2]
[389517083,1759692638685,-500.0,0.00016438,2]
[389517085,1759692638693,-500.0,0.00016438,2]
[389517087,1759692638702,-423.01133758,0.00016438,2]
[389517089,1759692638712,-1653.33,0.00016438,2]
[389517091,1759692638721,-500.0,0.00016438,2]
[389517093,1759692638731,-1409.77,0.00016438,2]
[389517095,1759692638741,-500.0,0.00016438,2]
[389517097,1759692638750,-500.0,0.00016438,2]
[389517099,1759692638759,-532.88,0.00016438,2]
[389517101,1759692638770,-814.85,0.00016438,2]
[389517104,1759692638779,-500.0,0.00016438,2]
[389517106,1759692638789,-3574.17,0.00016438,2]
[389517108,1759692638798,-921.73,0.00016438,2]
[389517110,1759692638806,-1329.89,0.00016438,2]
[389517112,1759692638815,-1077.54,0.00016438,2]
[389517114,1759692638825,-950.3,0.00016438,2]
[389517115,1759692638835,-156.53734306,0.00016438,2]
[389517117,1759692638844,-500.0,0.00016438,2]
[389517120,1759692638853,-500.0,0.00016438,2]
[389517122,1759692638862,-500.0,0.00016438,2]
[389517124,1759692638871,-500.0,0.00016438,2]
[389517126,1759692638880,-3182.69,0.00016438,2]
[389517128,1759692638889,-521.18,0.00016438,2]
[389517130,1759692638898,-500.0,0.00016438,2]
[389517131,1759692638907,-500.0,0.00016438,2]
[389517134,1759692638916,-1200.37,0.00016438,2]
[389517136,1759692638925,-1390.33,0.00016438,2]
[389517138,1759692638935,-500.0,0.00016438,2]
[389517139,1759692638945,-1902.39,0.00016438,2]
[389517141,1759692638955,-500.0,0.00016438,2]
[389517143,1759692638964,-5583.95,0.00016438,2]
[389517145,1759692638974,-5192.42,0.00016438,2]
[389517147,1759692638983,-500.0,0.00016438,2]
[389517149,1759692638992,-505.59372834,0.00016438,2]
[389517151,1759692639001,-1706.76,0.00016438,2]
[389517153,1759692639010,-1999.22,0.00016438,2]
[389517155,1759692639020,-500.0,0.00016438,2]
[389517158,1759692639029,-500.0,0.00016438,2]
[389517160,1759692639039,-1500.0,0.00016438,2]
[389517162,1759692639049,-500.0,0.000165,2]
[389517164,1759692639058,-431.24006964,0.00016566,2]
[389517166,1759692639068,-1724.96027858,0.00016566,2]
[389517168,1759692639078,-3881.1606268,0.00016566,2]
[389517170,1759692639087,-6892.9412732,0.00016566,2]
[389517172,1759692639096,-157.87844717,0.00016566,2]
[389517174,1759692639105,-1533.53654842,0.00016612,2]
[389517176,1759692639114,-553.27703503,0.00016712,2]
[389517177,1759692639123,-500.0,0.00016712,2]
[389517180,1759692639133,-500.0,0.00016712,2]
[389517181,1759692639142,-500.0,0.00016712,2]
[389517184,1759692639152,-500.0,0.00016712,2]
[389517185,1759692639161,-500.0,0.00016712,2]
[389517188,1759692639171,-500.0,0.00016712,2]
[389517190,1759692639180,-500.0,0.00016712,2]
[389517191,1759692639190,-468.98320977,0.00016712,2]
[389517193,1759692639199,-500.0,0.00016712,2]
[389517196,1759692639210,-500.0,0.00016712,2]
[389517198,1759692639219,-500.0,0.00016712,2]
[389517200,1759692639234,-1101.78,0.00016712,2]
[389517202,1759692639243,-500.0,0.00016712,2]
[389517204,1759692639253,-500.0,0.00016712,2]
[389517206,1759692639262,-500.0,0.00016712,2]
[389517208,1759692639272,-500.0,0.00016712,2]
[389517210,1759692639281,-500.0,0.00016712,2]
[389517212,1759692639291,-734.59,0.00016712,2]
[389517214,1759692639300,-613.4,0.00016712,2]
[389517216,1759692639312,-541.71,0.00016712,2]
[389517218,1759692639321,-500.0,0.00016712,2]
[389517220,1759692639330,-1007.86,0.00016712,2]
[389517222,1759692639339,-500.0,0.00016712,2]
[389517224,1759692639348,-561.15140565,0.00016712,2]
[389517226,1759692639358,-500.0,0.00016712,2]
[389517228,1759692639367,-500.0,0.00016712,2]
[389517230,1759692639376,-500.0,0.00016712,2]
[389517232,1759692639385,-500.0,0.00016712,2]
[389517234,1759692639394,-500.0,0.00016712,2]
[389517236,1759692639403,-500.0,0.00016712,2]
[389517238,1759692639412,-545.83,0.00016712,2]
[389517240,1759692639421,-500.0,0.00016712,2]
[389517242,1759692639430,-500.0,0.00016712,2]
[389517244,1759692639438,-500.0,0.00016712,2]
[389517246,1759692639447,-500.0,0.00016712,2]
[389517248,1759692639456,-500.0,0.00016712,2]
[389517250,1759692639466,-500.0,0.00016712,2]
[389517252,1759692639475,-623.0,0.00016712,2]
[389517255,1759692639485,-941.07,0.00016712,2]
[389517258,1759692639494,-1704.19,0.00016712,2]
[389517261,1759692639504,-500.0,0.00016712,2]
[389517264,1759692639513,-1027.87,0.00016712,2]
[389517267,1759692639522,-500.0,0.00016712,2]
[389517269,1759692639531,-500.0,0.00016712,2]
[389517272,1759692639540,-526.84,0.00016712,2]
[389517275,1759692639549,-500.0,0.00016712,2]
[389517278,1759692639558,-500.0,0.00016712,2]
[389517281,1759692639567,-543.22,0.00016712,2]
[389517283,1759692639576,-500.0,0.00016712,2]
[389517286,1759692639585,-500.0,0.00016712,2]
[389517289,1759692639593,-867.19,0.00016712,2]
[389517293,1759692639602,-679.18,0.00016712,2]
[389517295,1759692639611,-610.06,0.00016712,2]
[389517297,1759692639620,-700.71,0.00016712,2]
[389517300,1759692639630,-500.0,0.00016712,2]
[389517304,1759692639639,-500.0,0.00016712,2]
[389517306,1759692639647,-673.07,0.00016712,2]
[389517309,1759692639656,-500.0,0.00016712,2]
[389517311,1759692639665,-500.0,0.00016712,2]
[389517313,1759692639674,-500.0,0.00016712,2]
[389517315,1759692639683,-809.79,0.00016712,2]
[389517317,1759692639692,-500.0,0.00016712,2]
[389517320,1759692639700,-1748.31,0.00016712,2]
[389517323,1759692639709,-500.0,0.00016712,2]
[389517326,1759692639718,-500.0,0.00016712,2]
[389517329,1759692639727,-1036.92,0.00016712,2]
[389517332,1759692639735,-500.0,0.00016712,2]
[389517335,1759692639744,-500.0,0.00016712,2]
[389517338,1759692639753,-500.0,0.00016712,2]
[389517341,1759692639762,-500.0,0.00016712,2]
[389517344,1759692639773,-500.0,0.00016712,2]
[389517348,1759692639782,-500.0,0.00016712,2]
[389517349,1759692639792,-500.0,0.00016712,2]
[389517351,1759692639801,-589.55,0.00016712,2]
[389517354,1759692639811,-500.0,0.00016712,2]
[389517356,1759692639820,-1718.63,0.00016712,2]
[389517358,1759692639829,-500.0,0.00016712,2]
[389517360,1759692639837,-500.0,0.00016712,2]
[389517362,1759692639847,-500.0,0.00016712,2]
[389517364,1759692639856,-488.54014687,0.00016712,2]
[389517366,1759692639865,-500.0,0.00016712,2]
[389517368,1759692639873,-500.0,0.00016712,2]
[389517370,1759692639882,-707.46,0.00016712,2]
[389517372,1759692639891,-500.0,0.00016712,2]
[389517374,1759692639900,-650.41,0.00016712,2]
[389517376,1759692639909,-500.0,0.00016712,2]
[389517378,1759692639917,-1044.75,0.00016712,2]
[389517380,1759692639927,-500.0,0.00016712,2]
[389517382,1759692639935,-500.0,0.00016712,2]
[389517384,1759692639944,-539.43,0.00016712,2]
[389517386,1759692639953,-727.65,0.00016712,2]
[389517388,1759692639962,-845.99,0.00016712,2]
[389517390,1759692639971,-500.0,0.00016712,2]
[389517392,1759692639979,-500.0,0.00016712,2]
[389517393,1759692639988,-500.0,0.00016712,2]
[389517396,1759692639998,-500.0,0.00016712,2]
[389517398,1759692640007,-500.0,0.00016712,2]
[389517400,1759692640016,-500.0,0.00016712,2]
[389517402,1759692640025,-500.0,0.00016712,2]
[389517404,1759692640035,-500.0,0.00016712,2]
[389517406,1759692640043,-818.26,0.00016712,2]
[389517408,1759692640054,-500.0,0.00016712,2]
[389517410,1759692640063,-500.0,0.00016712,2]
[389517412,1759692640072,-500.0,0.00016712,2]
[389517414,1759692640081,-5075.45,0.00016712,2]
[389517416,1759692640090,-500.0,0.00016712,2]
[389517418,1759692640098,-500.0,0.00016712,2]
[389517420,1759692640108,-1971.29,0.00016712,2]
[389517422,1759692640116,-500.0,0.00016712,2]
[389517424,1759692640125,-1923.98,0.00016712,2]
[389517426,1759692640134,-628.15,0.00016712,2]
[389517428,1759692640144,-500.0,0.00016712,2]
[389517430,1759692640153,-500.0,0.00016712,2]
[389517432,1759692640162,-500.0,0.00016712,2]
[389517435,1759692640171,-820.02,0.00016712,2]
[389517437,1759692640180,-2676.55,0.00016712,2]
[389517439,1759692640188,-500.0,0.00016712,2]
[389517441,1759692640197,-500.0,0.00016712,2]
[389517443,1759692640206,-1089.03,0.00016712,2]
[389517445,1759692640215,-500.0,0.00016712,2]
[389517447,1759692640223,-500.0,0.00016712,2]
[389517449,1759692640237,-500.0,0.00016712,2]
[389517451,1759692640246,-1104.93,0.00016712,2]
[389517453,1759692640255,-500.0,0.00016712,2]
[389517455,1759692640264,-500.0,0.00016712,2]
[389517457,1759692640274,-500.0,0.00016712,2]
[389517459,1759692640282,-544.49,0.00016712,2]
[389517461,1759692640291,-324.88460938,0.00016712,2]
[389517463,1759692640300,-2626.85,0.00016712,2]
[389517464,1759692640310,-500.0,0.00016712,2]
[389517467,1759692640319,-651.08,0.00016712,2]
[389517469,1759692640328,-1933.04,0.00016712,2]
[389517470,1759692640337,-500.0,0.00016712,2]
[389517472,1759692640346,-640.21,0.00016712,2]
[389517474,1759692640355,-500.0,0.00016712,2]
[389517476,1759692640364,-500.0,0.00016712,2]
[389517479,1759692640373,-4219.41,0.00016712,2]
[389517481,1759692640382,-3139.2,0.00016712,2]
[389517483,1759692640391,-3871.69,0.00016712,2]
[389517485,1759692640400,-1243.49,0.00016712,2]
[389517487,1759692640408,-500.0,0.00016712,2]
[389517489,1759692640418,-500.0,0.00016712,2]
[389517491,1759692640426,-500.0,0.00016712,2]
[389517493,1759692640435,-857.23,0.00016712,2]
[389517495,1759692640444,-588.92,0.00016712,2]
[389517497,1759692640452,-597.79,0.00016712,2]
[389517499,1759692640462,-500.0,0.00016712,2]
[389517501,1759692640471,-500.0,0.00016712,2]
[389517503,1759692640479,-500.0,0.00016712,2]
[389517505,1759692640488,-500.0,0.00016712,2]
[389517507,1759692640497,-500.0,0.00016712,2]
[389517509,1759692640506,-3649.83,0.00016712,2]
[389517511,1759692640515,-924.11,0.00016712,2]
[389517513,1759692640524,-601.34,0.00016712,2]
[389517515,1759692640533,-670.11,0.00016712,2]
[389517517,1759692640542,-500.0,0.00016712,2]
[389517519,1759692640551,-3096.74,0.00016712,2]
[389517521,1759692640559,-1663.12,0.00016712,2]
[389517522,1759692640568,-1711.03,0.00016712,2]
[389517525,1759692640577,-1159.56,0.00016712,2]
[389517527,1759692640586,-1107.41,0.00016712,2]
[389517529,1759692640596,-500.0,0.00016712,2]
[389517531,1759692640605,-669.78,0.00016712,2]
[389517533,1759692640614,-500.0,0.00016712,2]
[389517535,1759692640623,-391.74709679,0.00016712,2]
[389517537,1759692640632,-1321.05,0.00016712,2]
[389517539,1759692640641,-1386.38,0.00016712,2]
[389517541,1759692640650,-622.72,0.00016712,2]
[389517543,1759692640659,-500.0,0.00016712,2]
[389517545,1759692640668,-2338.81,0.00016712,2]
[389517547,1759692640677,-2336.38,0.00016712,2]
[389517549,1759692640686,-807.08,0.00016712,2]
[389517551,1759692640695,-758.74,0.00016712,2]
[389517553,1759692640704,-500.0,0.00016712,2]
[389517555,1759692640713,-500.0,0.00016712,2]
[389517557,1759692640722,-500.0,0.00016712,2]
[389517559,1759692640730,-500.0,0.00016712,2]